[Event "Late-Titled-Tuesday-Blitz-June-18-2024"]
[Site "Chess.com"]
[Date "2024.06.18"]
[Round "5"]
[White "pooh2012"]
[Black "monomita"]
[Result "0-1"]
[WhiteElo "2566"]
[BlackElo "2776"]
[TimeControl "180+1"]
[EndTime "14:59:04 PDT"]
[Termination "monomita won by resignation"]

1. Nf3 {[%clk 0:03:00.9]} 1... e6 {[%clk 0:02:59.3]} 2. g3 {[%clk 0:02:58.7]}
2... c5 {[%clk 0:02:59.8]} 3. c4 {[%clk 0:02:58]} 3... Nc6 {[%clk 0:03:00.1]} 4.
Bg2 {[%clk 0:02:58.3]} 4... g5 {[%clk 0:02:59.6]} 5. d3 {[%clk 0:02:53.9]} 5...
g4 {[%clk 0:02:55.8]} 6. Nfd2 {[%clk 0:02:49.7]} 6... h5 {[%clk 0:02:55.6]} 7.
h3 {[%clk 0:02:44.2]} 7... Bg7 {[%clk 0:02:53.1]} 8. hxg4 {[%clk 0:02:38.7]}
8... hxg4 {[%clk 0:02:52.7]} 9. Rxh8 {[%clk 0:02:39.6]} 9... Bxh8 {[%clk
0:02:52.5]} 10. Nc3 {[%clk 0:02:35.8]} 10... f5 {[%clk 0:02:45.3]} 11. Nb3
{[%clk 0:02:32.3]} 11... d6 {[%clk 0:02:36.9]} 12. Kd2 {[%clk 0:01:37.3]} 12...
Qg5+ {[%clk 0:02:14.7]} 13. Kc2 {[%clk 0:01:35.9]} 13... Qh5 {[%clk 0:02:15.2]}
14. Nb5 {[%clk 0:01:21.8]} 14... Kd7 {[%clk 0:02:14.2]} 15. Bf4 {[%clk
0:00:52.8]} 15... e5 {[%clk 0:01:58]} 16. Be3 {[%clk 0:00:52.3]} 16... Nf6
{[%clk 0:01:48]} 17. Qh1 {[%clk 0:00:48.4]} 17... a6 {[%clk 0:01:34]} 18. Nxd6
{[%clk 0:00:23.8]} 18... Kxd6 {[%clk 0:01:20.4]} 19. Qxh5 {[%clk 0:00:23.6]}
19... Nxh5 {[%clk 0:01:19.7]} 20. Bxc5+ {[%clk 0:00:18.7]} 20... Kc7 {[%clk
0:01:13]} 21. Rh1 {[%clk 0:00:18.8]} 21... Nxg3 {[%clk 0:01:11.5]} 22. fxg3
{[%clk 0:00:18]} 22... Bf6 {[%clk 0:01:10.1]} 23. Rh6 {[%clk 0:00:15]} 23... Bg5
{[%clk 0:01:03.6]} 24. Rg6 {[%clk 0:00:10.9]} 24... Bd8 {[%clk 0:00:56.8]} 25.
Bd6+ {[%clk 0:00:05]} 25... Kd7 {[%clk 0:00:55.4]} 26. Nc5+ {[%clk 0:00:04.7]}
26... Ke8 {[%clk 0:00:52]} 27. Bd5 {[%clk 0:00:03.1]} 27... Nb4+ {[%clk
0:00:48.9]} 28. Kc3 {[%clk 0:00:02.1]} 28... Nxd5+ {[%clk 0:00:49.8]} 29. cxd5
{[%clk 0:00:03]} 29... Kf7 {[%clk 0:00:49.6]} 30. Rh6 {[%clk 0:00:02.5]} 30...
Bf6 {[%clk 0:00:49.9]} 31. Kc4 {[%clk 0:00:02.4]} 31... b5+ {[%clk 0:00:49.4]}
32. Kb4 {[%clk 0:00:03]} 32... Kg7 {[%clk 0:00:40.1]} 33. Rh1 {[%clk 0:00:02.5]}
33... Ra7 {[%clk 0:00:30.6]} 34. e4 {[%clk 0:00:02.8]} 34... Rf7 {[%clk
0:00:27.2]} 35. Rf1 {[%clk 0:00:02.5]} 35... Kg6 {[%clk 0:00:24.3]} 36. exf5+
{[%clk 0:00:02.4]} 36... Bxf5 {[%clk 0:00:25.2]} 37. Ne4 {[%clk 0:00:02.3]}
37... Bxe4 {[%clk 0:00:19.7]} 38. dxe4 {[%clk 0:00:02.3]} 38... Be7 {[%clk
0:00:20.3]} 39. Rxf7 {[%clk 0:00:01.1]} 39... Bxd6+ {[%clk 0:00:20.4]} 40. Ka5
{[%clk 0:00:01.3]} 40... Kxf7 {[%clk 0:00:21.3]} 41. Kxa6 {[%clk 0:00:01.9]}
41... b4 {[%clk 0:00:21]} 42. Kb5 {[%clk 0:00:02]} 42... Ke7 {[%clk 0:00:21.6]}
43. Kc4 {[%clk 0:00:02]} 43... Kd7 {[%clk 0:00:21.7]} 44. Kb5 {[%clk 0:00:02.6]}
44... Kc7 {[%clk 0:00:22]} 45. Ka5 {[%clk 0:00:03.2]} 45... Bc5 {[%clk
0:00:21.7]} 46. Kb5 {[%clk 0:00:03.7]} 46... Bf2 {[%clk 0:00:22.4]} 47. Kxb4
{[%clk 0:00:04.3]} 47... Bxg3 {[%clk 0:00:23]} 48. Kc4 {[%clk 0:00:04.9]} 48...
Bf2 {[%clk 0:00:23.6]} 49. Kd3 {[%clk 0:00:05.5]} 49... Bd4 {[%clk 0:00:22.7]}
50. Ke2 {[%clk 0:00:04]} 50... Kd6 {[%clk 0:00:15.9]} 51. b3 {[%clk 0:00:04.1]}
51... Ke7 {[%clk 0:00:15.4]} 52. Kf1 {[%clk 0:00:02.9]} 52... Kf6 {[%clk
0:00:14.4]} 53. a4 {[%clk 0:00:03.2]} 53... Bc3 {[%clk 0:00:11.3]} 54. Kg2
{[%clk 0:00:02.5]} 54... Be1 {[%clk 0:00:09.5]} 55. Kg1 {[%clk 0:00:01.5]} 55...
Kg5 {[%clk 0:00:09.4]} 56. Kg2 {[%clk 0:00:02.4]} 56... Kf4 {[%clk 0:00:09.3]}
57. d6 {[%clk 0:00:02.9]} 57... Ba5 {[%clk 0:00:09.8]} 58. b4 {[%clk 0:00:02.5]}
58... Bxb4 {[%clk 0:00:09.9]} 59. d7 {[%clk 0:00:03]} 59... Ba5 {[%clk
0:00:10.4]} 60. Kf2 {[%clk 0:00:03.1]} 60... Kxe4 {[%clk 0:00:10.9]} 61. Kg3
{[%clk 0:00:03.9]} 61... Kd5 {[%clk 0:00:11.4]} 62. Kxg4 {[%clk 0:00:04.1]}
62... Ke6 {[%clk 0:00:12]} 63. d8=Q {[%clk 0:00:03]} 63... Bxd8 {[%clk 0:00:12]}
64. Kf3 {[%clk 0:00:03.9]} 64... Kd5 {[%clk 0:00:12.6]} 65. Ke3 {[%clk
0:00:04.8]} 65... e4 {[%clk 0:00:13.2]} 66. Ke2 {[%clk 0:00:05.4]} 66... Bg5
{[%clk 0:00:13.3]} 67. a5 {[%clk 0:00:05.3]} 67... Be7 {[%clk 0:00:13.4]} 0-1

[Event "Late-Titled-Tuesday-Blitz-June-18-2024"]
[Site "Chess.com"]
[Date "2024.06.18"]
[Round "5"]
[White "Zurability"]
[Black "HajiyevKanan"]
[Result "1-0"]
[WhiteElo "2799"]
[BlackElo "2560"]
[TimeControl "180+1"]
[EndTime "14:59:08 PDT"]
[Termination "Zurability won by checkmate"]

1. e4 {[%clk 0:01:46.9]} 1... a6 {[%clk 0:03:00.9]} 2. d4 {[%clk 0:01:45]} 2...
c6 {[%clk 0:03:01.6]} 3. Bd3 {[%clk 0:01:45.1]} 3... d5 {[%clk 0:03:02.5]} 4.
exd5 {[%clk 0:01:36.8]} 4... cxd5 {[%clk 0:03:03.4]} 5. c3 {[%clk 0:01:36.3]}
5... Nc6 {[%clk 0:03:04]} 6. Bf4 {[%clk 0:01:35.1]} 6... Nf6 {[%clk 0:03:02.3]}
7. h3 {[%clk 0:01:32.9]} 7... g6 {[%clk 0:03:02.8]} 8. Nf3 {[%clk 0:01:31.1]}
8... Bg7 {[%clk 0:03:03.5]} 9. O-O {[%clk 0:01:31]} 9... O-O {[%clk 0:03:04.4]}
10. Nbd2 {[%clk 0:01:29.7]} 10... Bf5 {[%clk 0:03:05]} 11. Nb3 {[%clk
0:01:21.6]} 11... Bxd3 {[%clk 0:03:04.7]} 12. Qxd3 {[%clk 0:01:21.7]} 12... e6
{[%clk 0:03:05.6]} 13. Rfe1 {[%clk 0:01:13.7]} 13... b6 {[%clk 0:03:00.7]} 14.
a4 {[%clk 0:01:10.1]} 14... Ne4 {[%clk 0:02:54.9]} 15. Nbd2 {[%clk 0:01:05.8]}
15... Nxd2 {[%clk 0:02:50.2]} 16. Qxd2 {[%clk 0:01:03.8]} 16... Re8 {[%clk
0:02:49.3]} 17. Bh6 {[%clk 0:00:57.5]} 17... Bf6 {[%clk 0:02:38.5]} 18. Qf4
{[%clk 0:00:56.8]} 18... Ra7 {[%clk 0:02:29]} 19. h4 {[%clk 0:00:56.5]} 19...
Bg7 {[%clk 0:02:25.9]} 20. h5 {[%clk 0:00:52.4]} 20... Qc7 {[%clk 0:02:25.3]}
21. Qe3 {[%clk 0:00:47.6]} 21... Ne7 {[%clk 0:02:22.2]} 22. Bxg7 {[%clk
0:00:42.3]} 22... Kxg7 {[%clk 0:02:20.5]} 23. h6+ {[%clk 0:00:39.6]} 23... Kg8
{[%clk 0:02:21]} 24. Qg5 {[%clk 0:00:35.9]} 24... Qd8 {[%clk 0:02:11.9]} 25. g4
{[%clk 0:00:28.9]} 25... Nc6 {[%clk 0:02:09.2]} 26. Qf4 {[%clk 0:00:27.5]} 26...
Qe7 {[%clk 0:02:03.7]} 27. Re2 {[%clk 0:00:25.1]} 27... Qf8 {[%clk 0:02:00.5]}
28. Kg2 {[%clk 0:00:24.3]} 28... Na5 {[%clk 0:02:00.9]} 29. g5 {[%clk 0:00:19]}
29... Nc4 {[%clk 0:02:01]} 30. b3 {[%clk 0:00:18.8]} 30... Nd6 {[%clk
0:02:01.3]} 31. Ne5 {[%clk 0:00:19.5]} 31... Nf5 {[%clk 0:02:01]} 32. Ng4 {[%clk
0:00:19.9]} 32... Rc8 {[%clk 0:01:58.5]} 33. Qe5 {[%clk 0:00:17.6]} 33... Qd6
{[%clk 0:01:26.6]} 34. Rc1 {[%clk 0:00:15.1]} 34... Qxe5 {[%clk 0:01:23.8]} 35.
Nxe5 {[%clk 0:00:15.4]} 35... Rac7 {[%clk 0:01:15.4]} 36. c4 {[%clk 0:00:07.4]}
36... Nxd4 {[%clk 0:01:09.7]} 37. Re3 {[%clk 0:00:07.8]} 37... b5 {[%clk
0:01:03.9]} 38. Rd1 {[%clk 0:00:07.5]} 38... Nf5 {[%clk 0:01:02.5]} 39. Red3
{[%clk 0:00:07.5]} 39... bxc4 {[%clk 0:00:56.7]} 40. bxc4 {[%clk 0:00:07.7]}
40... d4 {[%clk 0:00:57.2]} 41. Rb1 {[%clk 0:00:06.9]} 41... Kf8 {[%clk
0:00:56.3]} 42. f4 {[%clk 0:00:07]} 42... Ke7 {[%clk 0:00:55.4]} 43. Rb6 {[%clk
0:00:07.3]} 43... Ne3+ {[%clk 0:00:48.3]} 44. Kf3 {[%clk 0:00:05.6]} 44... Nxc4
{[%clk 0:00:49]} 45. Rxa6 {[%clk 0:00:06]} 45... Nxe5+ {[%clk 0:00:47.6]} 46.
fxe5 {[%clk 0:00:06.9]} 46... Rc3 {[%clk 0:00:47.5]} 47. Ke4 {[%clk 0:00:07.3]}
47... Rxd3 {[%clk 0:00:44]} 48. Kxd3 {[%clk 0:00:08.2]} 48... Rc3+ {[%clk
0:00:30.7]} 49. Kxd4 {[%clk 0:00:07]} 49... Rg3 {[%clk 0:00:31.6]} 50. Ra7+
{[%clk 0:00:05.3]} 50... Ke8 {[%clk 0:00:32.2]} 51. Ra8+ {[%clk 0:00:05.6]}
51... Ke7 {[%clk 0:00:31.4]} 52. Rh8 {[%clk 0:00:06]} 52... Rg4+ {[%clk
0:00:31.1]} 53. Kc5 {[%clk 0:00:05.6]} 53... Rxg5 {[%clk 0:00:32]} 54. Rxh7
{[%clk 0:00:05.5]} 54... Rxe5+ {[%clk 0:00:32.3]} 55. Kb6 {[%clk 0:00:06.2]}
55... Re1 {[%clk 0:00:27.5]} 56. a5 {[%clk 0:00:04.4]} 56... Rb1+ {[%clk
0:00:28.2]} 57. Ka7 {[%clk 0:00:04.7]} 57... e5 {[%clk 0:00:25.2]} 58. Rh8
{[%clk 0:00:05]} 58... Kf6 {[%clk 0:00:24.5]} 59. a6 {[%clk 0:00:04.7]} 59... g5
{[%clk 0:00:23]} 60. Rb8 {[%clk 0:00:04.6]} 60... Ra1 {[%clk 0:00:21.8]} 61.
Rb6+ {[%clk 0:00:05]} 61... Ke7 {[%clk 0:00:20.7]} 62. h7 {[%clk 0:00:05.2]}
62... Rh1 {[%clk 0:00:21.4]} 63. Kb7 {[%clk 0:00:05.2]} 63... Rxh7 {[%clk
0:00:20]} 64. a7 {[%clk 0:00:06.1]} 64... Rh8 {[%clk 0:00:20.5]} 65. Rc6 {[%clk
0:00:06.8]} 65... Rd8 {[%clk 0:00:19.1]} 66. Rc8 {[%clk 0:00:07.4]} 66... Rd1
{[%clk 0:00:16.8]} 67. a8=Q {[%clk 0:00:07.3]} 67... Rb1+ {[%clk 0:00:17.6]} 68.
Kc6 {[%clk 0:00:07.8]} 68... Rc1+ {[%clk 0:00:18]} 69. Kd5 {[%clk 0:00:08.1]}
69... Rxc8 {[%clk 0:00:17.5]} 70. Qxc8 {[%clk 0:00:07.6]} 70... Kf6 {[%clk
0:00:18.4]} 71. Qd8+ {[%clk 0:00:07.5]} 71... Kf5 {[%clk 0:00:19]} 72. Qd7+
{[%clk 0:00:07.9]} 72... Kf6 {[%clk 0:00:18.4]} 73. Qd6+ {[%clk 0:00:08.4]}
73... Kf5 {[%clk 0:00:18.5]} 74. Qxe5+ {[%clk 0:00:08.9]} 74... Kg6 {[%clk
0:00:19.4]} 75. Qe4+ {[%clk 0:00:09.1]} 75... f5 {[%clk 0:00:19.5]} 76. Qe6+
{[%clk 0:00:09.4]} 76... Kh5 {[%clk 0:00:19.7]} 77. Qxf5 {[%clk 0:00:09.9]}
77... Kh4 {[%clk 0:00:20]} 78. Ke4 {[%clk 0:00:10]} 78... g4 {[%clk 0:00:19.6]}
79. Kf4 {[%clk 0:00:10]} 79... Kh3 {[%clk 0:00:19.8]} 80. Qxg4+ {[%clk
0:00:10.1]} 80... Kh2 {[%clk 0:00:20.5]} 81. Kf3 {[%clk 0:00:10.7]} 81... Kh1
{[%clk 0:00:20.9]} 82. Qg2# {[%clk 0:00:11.4]} 1-0

[Event "Late-Titled-Tuesday-Blitz-June-18-2024"]
[Site "Chess.com"]
[Date "2024.06.18"]
[Round "5"]
[White "KingCyber19"]
[Black "Igor_Lysyj"]
[Result "0-1"]
[WhiteElo "2622"]
[BlackElo "2847"]
[TimeControl "180+1"]
[EndTime "14:59:08 PDT"]
[Termination "Igor_Lysyj won by resignation"]

1. d4 {[%clk 0:02:50.8]} 1... d5 {[%clk 0:02:59.4]} 2. c4 {[%clk 0:02:50.4]}
2... e6 {[%clk 0:03:00]} 3. g3 {[%clk 0:02:50.2]} 3... Nf6 {[%clk 0:02:58.4]} 4.
Bg2 {[%clk 0:02:44.3]} 4... Be7 {[%clk 0:02:58.8]} 5. Nf3 {[%clk 0:02:42.8]}
5... O-O {[%clk 0:02:58.8]} 6. O-O {[%clk 0:02:43.7]} 6... dxc4 {[%clk
0:02:58.7]} 7. Qa4 {[%clk 0:02:44.4]} 7... a6 {[%clk 0:02:58.6]} 8. Qxc4 {[%clk
0:02:45]} 8... b5 {[%clk 0:02:59.1]} 9. Qc2 {[%clk 0:02:45.9]} 9... Bb7 {[%clk
0:02:59.6]} 10. Bd2 {[%clk 0:02:46.2]} 10... Be4 {[%clk 0:02:55.2]} 11. Qc1
{[%clk 0:02:44.8]} 11... c6 {[%clk 0:02:55.6]} 12. a4 {[%clk 0:02:43.4]} 12...
Nbd7 {[%clk 0:02:54.9]} 13. Nc3 {[%clk 0:02:40]} 13... Bg6 {[%clk 0:02:53.4]}
14. Ne5 {[%clk 0:02:39.6]} 14... Nxe5 {[%clk 0:02:51.9]} 15. dxe5 {[%clk
0:02:40]} 15... Nd5 {[%clk 0:02:52.2]} 16. axb5 {[%clk 0:02:38.2]} 16... axb5
{[%clk 0:02:49.2]} 17. Nxd5 {[%clk 0:02:38.4]} 17... cxd5 {[%clk 0:02:47.8]} 18.
Rxa8 {[%clk 0:02:38.4]} 18... Qxa8 {[%clk 0:02:47.4]} 19. Qc7 {[%clk 0:02:39.1]}
19... Re8 {[%clk 0:02:37.9]} 20. Be3 {[%clk 0:02:29.6]} 20... b4 {[%clk
0:02:33.1]} 21. Rc1 {[%clk 0:02:16.1]} 21... Bf8 {[%clk 0:02:31.9]} 22. h4
{[%clk 0:02:01.2]} 22... b3 {[%clk 0:02:29.3]} 23. Bf3 {[%clk 0:01:48.7]} 23...
Bc2 {[%clk 0:02:20.6]} 24. h5 {[%clk 0:01:42.5]} 24... h6 {[%clk 0:02:19.4]} 25.
g4 {[%clk 0:01:41.4]} 25... Rc8 {[%clk 0:02:12.2]} 26. Qd7 {[%clk 0:01:37.1]}
26... Rc4 {[%clk 0:01:52.7]} 27. g5 {[%clk 0:01:27.5]} 27... hxg5 {[%clk
0:01:43.4]} 28. Bxg5 {[%clk 0:01:26.7]} 28... Qb8 {[%clk 0:01:21.1]} 29. Be7
{[%clk 0:00:56.6]} 29... Rc7 {[%clk 0:00:48.8]} 30. Qd8 {[%clk 0:00:38.7]} 30...
Qxd8 {[%clk 0:00:43.6]} 31. Bxd8 {[%clk 0:00:39.6]} 31... Ra7 {[%clk 0:00:44]}
32. Bb6 {[%clk 0:00:37.8]} 32... Ra4 {[%clk 0:00:40.3]} 33. e3 {[%clk
0:00:25.5]} 33... Ba3 {[%clk 0:00:25.2]} 34. Bd4 {[%clk 0:00:22.5]} 34... Rxd4
{[%clk 0:00:22.5]} 35. exd4 {[%clk 0:00:23.4]} 35... Bxb2 {[%clk 0:00:23.1]} 36.
Rf1 {[%clk 0:00:17.5]} 36... Bxd4 {[%clk 0:00:23]} 37. Bd1 {[%clk 0:00:17.5]}
37... Bd3 {[%clk 0:00:18.1]} 38. Bxb3 {[%clk 0:00:15.5]} 38... Bxf1 {[%clk
0:00:17.3]} 39. Kxf1 {[%clk 0:00:16.4]} 39... Bxe5 {[%clk 0:00:17.6]} 40. Kg2
{[%clk 0:00:17.3]} 40... Kh7 {[%clk 0:00:16.5]} 41. Kh3 {[%clk 0:00:16]} 41...
Kh6 {[%clk 0:00:17]} 42. Bd1 {[%clk 0:00:13.2]} 42... Kg5 {[%clk 0:00:16.4]} 43.
Kg2 {[%clk 0:00:12.7]} 43... f5 {[%clk 0:00:15.7]} 44. Kf1 {[%clk 0:00:11.6]}
44... Bf4 {[%clk 0:00:14.4]} 45. Bf3 {[%clk 0:00:11.9]} 45... d4 {[%clk
0:00:13.4]} 46. Ke2 {[%clk 0:00:12.3]} 46... e5 {[%clk 0:00:14]} 47. Ke1 {[%clk
0:00:04.8]} 47... e4 {[%clk 0:00:13.6]} 48. Bd1 {[%clk 0:00:05.4]} 48... Bd6
{[%clk 0:00:12.7]} 49. Be2 {[%clk 0:00:03.4]} 49... d3 {[%clk 0:00:12.1]} 50.
Bd1 {[%clk 0:00:03.6]} 50... Bb4+ {[%clk 0:00:10.6]} 51. Kf1 {[%clk 0:00:03.7]}
51... Kf4 {[%clk 0:00:09.9]} 52. Kg2 {[%clk 0:00:03.6]} 52... Bc5 {[%clk
0:00:08.2]} 53. Kf1 {[%clk 0:00:01.2]} 53... Ke5 {[%clk 0:00:07.8]} 54. Kg2
{[%clk 0:00:01.6]} 54... Bb4 {[%clk 0:00:06.9]} 55. Kf1 {[%clk 0:00:01.7]} 55...
Kd4 {[%clk 0:00:06.9]} 56. Kg2 {[%clk 0:00:01.9]} 56... f4 {[%clk 0:00:07.1]}
57. h6 {[%clk 0:00:02.2]} 57... gxh6 {[%clk 0:00:06.8]} 58. Kf1 {[%clk
0:00:02.4]} 58... e3 {[%clk 0:00:06.2]} 59. fxe3+ {[%clk 0:00:03.3]} 59... fxe3
{[%clk 0:00:06.7]} 60. Bh5 {[%clk 0:00:03.3]} 60... Be7 {[%clk 0:00:05.3]} 61.
Bg4 {[%clk 0:00:02.1]} 61... Kc3 {[%clk 0:00:04.8]} 62. Bf3 {[%clk 0:00:01.9]}
62... Kd2 {[%clk 0:00:04.6]} 0-1

[Event "Late-Titled-Tuesday-Blitz-June-18-2024"]
[Site "Chess.com"]
[Date "2024.06.18"]
[Round "5"]
[White "legendisback1"]
[Black "Legit"]
[Result "0-1"]
[WhiteElo "3005"]
[BlackElo "2764"]
[TimeControl "180+1"]
[EndTime "14:59:10 PDT"]
[Termination "Legit won by checkmate"]

1. a3 {[%clk 0:03:00.9]} 1... g6 {[%clk 0:02:57]} 2. g3 {[%clk 0:02:52.9]} 2...
Bg7 {[%clk 0:02:56.7]} 3. Bg2 {[%clk 0:02:53.4]} 3... d5 {[%clk 0:02:47.7]} 4.
c4 {[%clk 0:02:46.5]} 4... c6 {[%clk 0:02:43.8]} 5. cxd5 {[%clk 0:02:41.7]} 5...
cxd5 {[%clk 0:02:44.7]} 6. Nf3 {[%clk 0:02:41.4]} 6... Nc6 {[%clk 0:02:42.6]} 7.
O-O {[%clk 0:02:41.3]} 7... Nh6 {[%clk 0:02:41.9]} 8. d4 {[%clk 0:02:39.9]} 8...
Nf5 {[%clk 0:02:38.7]} 9. e3 {[%clk 0:02:39.1]} 9... O-O {[%clk 0:02:38.9]} 10.
Nc3 {[%clk 0:02:38.2]} 10... e6 {[%clk 0:02:34.1]} 11. Ne1 {[%clk 0:02:34.6]}
11... b6 {[%clk 0:02:30.5]} 12. Nd3 {[%clk 0:02:33.9]} 12... Bb7 {[%clk
0:02:28.4]} 13. Re1 {[%clk 0:02:31.1]} 13... Rc8 {[%clk 0:02:28.8]} 14. Bd2
{[%clk 0:02:30.8]} 14... Na5 {[%clk 0:02:28.4]} 15. b3 {[%clk 0:02:29.9]} 15...
Nd6 {[%clk 0:02:24.1]} 16. Rc1 {[%clk 0:02:29]} 16... Qe7 {[%clk 0:02:21.5]} 17.
Qc2 {[%clk 0:02:24]} 17... Ne4 {[%clk 0:01:59.5]} 18. Qb2 {[%clk 0:02:20]} 18...
Nxd2 {[%clk 0:01:59]} 19. Qxd2 {[%clk 0:02:16]} 19... Nxb3 {[%clk 0:01:50.1]}
20. Qb2 {[%clk 0:02:15.4]} 20... Nxc1 {[%clk 0:01:50.7]} 21. Rxc1 {[%clk
0:02:14.8]} 21... Rc7 {[%clk 0:01:45.2]} 22. Rd1 {[%clk 0:02:13.1]} 22... Bc6
{[%clk 0:01:44]} 23. Nb4 {[%clk 0:02:12.1]} 23... Rfc8 {[%clk 0:01:42.7]} 24.
Bf1 {[%clk 0:02:09]} 24... Be8 {[%clk 0:01:40.9]} 25. Rc1 {[%clk 0:02:01.8]}
25... a5 {[%clk 0:01:32.6]} 26. Ncxd5 {[%clk 0:01:59.6]} 26... exd5 {[%clk
0:01:29.6]} 27. Nxd5 {[%clk 0:02:00.5]} 27... Qd6 {[%clk 0:01:27.3]} 28. Nxc7
{[%clk 0:02:00.3]} 28... Rxc7 {[%clk 0:01:28.2]} 29. Rb1 {[%clk 0:02:00.7]}
29... Rb7 {[%clk 0:01:16.9]} 30. Rc1 {[%clk 0:01:47.9]} 30... Rc7 {[%clk
0:01:14.9]} 31. Rb1 {[%clk 0:01:47.6]} 31... Rb7 {[%clk 0:01:10.1]} 32. Rc1
{[%clk 0:01:47.6]} 32... Bf8 {[%clk 0:01:10.5]} 33. Rc8 {[%clk 0:01:46.7]} 33...
Rb8 {[%clk 0:01:10.6]} 34. Rc3 {[%clk 0:01:43]} 34... b5 {[%clk 0:01:10.4]} 35.
Rc5 {[%clk 0:01:42.6]} 35... Qb6 {[%clk 0:01:06.4]} 36. Re5 {[%clk 0:01:42.4]}
36... b4 {[%clk 0:00:58.2]} 37. axb4 {[%clk 0:01:41.7]} 37... Qxb4 {[%clk
0:00:57.3]} 38. Qa2 {[%clk 0:01:40.6]} 38... a4 {[%clk 0:00:52.6]} 39. Bc4
{[%clk 0:01:32.3]} 39... Qb1+ {[%clk 0:00:52.3]} 40. Qxb1 {[%clk 0:01:30.8]}
40... Rxb1+ {[%clk 0:00:53.2]} 41. Kg2 {[%clk 0:01:31.5]} 41... Rb8 {[%clk
0:00:51.2]} 42. Ra5 {[%clk 0:01:26.8]} 42... Ra8 {[%clk 0:00:46.3]} 43. Rxa8
{[%clk 0:01:16.6]} 43... Bc6+ {[%clk 0:00:45.5]} 44. Kf1 {[%clk 0:01:17.5]}
44... Bxa8 {[%clk 0:00:45.7]} 45. Ke2 {[%clk 0:01:18.4]} 45... Be4 {[%clk
0:00:43.1]} 46. f3 {[%clk 0:01:17.4]} 46... Bb1 {[%clk 0:00:40.9]} 47. Kd2
{[%clk 0:01:16.4]} 47... Ba3 {[%clk 0:00:27.4]} 48. Kc3 {[%clk 0:01:13.1]} 48...
Bc1 {[%clk 0:00:22.8]} 49. d5 {[%clk 0:01:01]} 49... Kf8 {[%clk 0:00:21.3]} 50.
d6 {[%clk 0:01:00.3]} 50... Bxe3 {[%clk 0:00:17.8]} 51. Kb4 {[%clk 0:00:57.1]}
51... Bc2 {[%clk 0:00:15.7]} 52. Bb5 {[%clk 0:00:53.5]} 52... Bd2+ {[%clk
0:00:12.3]} 53. Ka3 {[%clk 0:00:49.4]} 53... Bc1+ {[%clk 0:00:12.3]} 54. Kb4
{[%clk 0:00:47.1]} 54... a3 {[%clk 0:00:12]} 55. Bc4 {[%clk 0:00:45.5]} 55...
Bb1 {[%clk 0:00:08.6]} 56. Kc5 {[%clk 0:00:44.8]} 56... a2 {[%clk 0:00:07.7]}
57. Bxa2 {[%clk 0:00:44]} 57... Bxa2 {[%clk 0:00:08.6]} 58. Kc6 {[%clk
0:00:44.7]} 58... Be6 {[%clk 0:00:08.6]} 59. Kc7 {[%clk 0:00:45.2]} 59... Bb2
{[%clk 0:00:07.6]} 60. f4 {[%clk 0:00:46.1]} 60... h5 {[%clk 0:00:07.6]} 61. d7
{[%clk 0:00:46.1]} 61... Bxd7 {[%clk 0:00:07.2]} 62. Kxd7 {[%clk 0:00:47]} 62...
Kg7 {[%clk 0:00:07.1]} 63. Ke8 {[%clk 0:00:45.5]} 63... Bc1 {[%clk 0:00:06.9]}
64. Ke7 {[%clk 0:00:43.2]} 64... f5 {[%clk 0:00:07.1]} 65. Ke6 {[%clk
0:00:38.9]} 65... Be3 {[%clk 0:00:07.6]} 66. Ke5 {[%clk 0:00:32.9]} 66... Bg1
{[%clk 0:00:07.9]} 67. h3 {[%clk 0:00:31.4]} 67... Bh2 {[%clk 0:00:07.6]} 68. g4
{[%clk 0:00:31.4]} 68... hxg4 {[%clk 0:00:08.5]} 69. hxg4 {[%clk 0:00:31.7]}
69... fxg4 {[%clk 0:00:09.4]} 70. Ke4 {[%clk 0:00:32.6]} 70... Kf6 {[%clk
0:00:09.7]} 71. Ke3 {[%clk 0:00:33]} 71... Kf5 {[%clk 0:00:10.3]} 72. Kf2 {[%clk
0:00:33.9]} 72... Bxf4 {[%clk 0:00:11.1]} 73. Kg2 {[%clk 0:00:34.8]} 73... g5
{[%clk 0:00:11.6]} 74. Kh1 {[%clk 0:00:35.7]} 74... g3 {[%clk 0:00:11.6]} 75.
Kg2 {[%clk 0:00:36.6]} 75... Kg4 {[%clk 0:00:12.2]} 76. Kg1 {[%clk 0:00:37.5]}
76... Be5 {[%clk 0:00:12.6]} 77. Kf1 {[%clk 0:00:38.4]} 77... Bg7 {[%clk
0:00:13.3]} 78. Kg2 {[%clk 0:00:39.3]} 78... Bh6 {[%clk 0:00:12.9]} 79. Kf1
{[%clk 0:00:40.2]} 79... Kf3 {[%clk 0:00:13.5]} 80. Kg1 {[%clk 0:00:40.7]} 80...
g2 {[%clk 0:00:13.7]} 81. Kh2 {[%clk 0:00:41.4]} 81... Kf2 {[%clk 0:00:12.8]}
82. Kh3 {[%clk 0:00:36.7]} 82... g4+ {[%clk 0:00:13.2]} 83. Kxg4 {[%clk
0:00:31.7]} 83... g1=Q+ {[%clk 0:00:13.3]} 84. Kh3 {[%clk 0:00:32.6]} 84... Qg3#
{[%clk 0:00:13.2]} 0-1